Cogmind - Beta 16 @@@ ROGUE MODE // 2026.01.26 @ 18:14:07 Player: Kiwi Result: Destroyed by D-53 Grenadier with Mini Grenade Launcher Performance ------------- Evolutions (0) 0 Regions Visited (2) 400 Robots Destroyed (14) 70 Value Destroyed (380) 380 Prototype IDs (0) 0 Alien Tech Used (0) 0 Bonus (0) 0 TOTAL SCORE: 850 Bonus ------- None Cogmind --------- Core Integrity 0/250 Matter 300/300 Energy 100/100 System Corruption 0% Temperature Cool (0) Movement Core (350) Ox6 Location -10/Mines Parts ------- > --- POWER (1) -------- (None) > --- PROPULSION (2) --- (None) > --- UTILITY (2) ------ Large Storage Unit Improved Targeting Computer > --- WEAPON (2) ------- (None) > --- INVENTORY (15) --- Ion Engine Wheel Wheel Improved Heat Sink Small Storage Unit Heavy EM Pulse Gun Heavy EM Pulse Gun Small Laser Small Laser Peak State ------------ > --- POWER ------------ Ion Engine > --- PROPULSION ------- Light Treads Light Treads > --- UTILITY ---------- Large Storage Unit Improved Targeting Computer > --- WEAPON ----------- Heavy EM Pulse Gun Heavy EM Pulse Gun > --- INVENTORY -------- Wheel Wheel Improved Heat Sink Small Storage Unit Heavy EM Pulse Gun Heavy EM Pulse Gun Small Laser Small Laser [Rating: 11] Favorites ----------- Power Ion Engine Engine Ion Engine Propulsion Light Treads Treads Light Treads Wheel Wheel Utility Large Storage Unit Storage Large Storage Unit Processor Improved Targeting Computer Weapon Heavy EM Pulse Gun Energy Gun Heavy EM Pulse Gun Build | -11 -10 -10 ------- Run | Yrd Mat Min Slots Evolved . | . . . Power . | . . . Propulsion . | . . . Utility . | . . . Weapon . | . . . Parts Attached 13 | 6 6 1 Power 2 | 1 . 1 Engine 2 | 1 . 1 Core . | . . . Reactor . | . . . Propulsion 4 | 4 . . Treads 2 | 2 . . Leg . | . . . Wheel 2 | 2 . . Hover . | . . . Flight . | . . . Utility 2 | . 2 . Device . | . . . Storage 1 | . 1 . Processor 1 | . 1 . Hackware . | . . . Protection . | . . . Artifact . | . . . Weapon 5 | 1 4 . Energy Gun 5 | 1 4 . Energy Cannon . | . . . Ballistic Gun . | . . . Ballistic Cannon . | . . . Launcher . | . . . Special Weapon . | . . . Impact Weapon . | . . . Slashing Weapon . | . . . Piercing Weapon . | . . . Special Melee Weapon . | . . . Unidentified Prototypes . | . . . Parts Lost 7 | . 1 6 Power 2 | . . 2 Propulsion 2 | . . 2 Utility . | . . . Weapon 3 | . 1 2 Highest Loss Streak 5 | . 1 5 To Critical Strikes . | . . . Average Backups 5 | 4 4 8 Power . | . . . Propulsion 1 | 1 2 2 Utility 1 | . 1 1 Weapon 2 | 1 1 4 Tool/Special . | . . . Unused Backups 5 | . . 5 Power 1 | . . 1 Propulsion . | . . . Utility 2 | . . 2 Weapon 2 | . . 2 Tool/Special . | . . . Average Slot Usage (%) 77 | . 70 95 Engine 13 | . 14 12 Treads 27 | . 28 26 Storage 8 | . 6 14 Processor 4 | . 1 14 Energy Gun 21 | . 19 26 Peak Build Rating 11 | 4 10 11 Average Rating 6 | 2 5 10 On Entrance 4 | . 4 10 Avg Prop Armor Cover (%) 13 | . 13 . Naked Turns . | . . . Heaviest Build 31 | 7 31 31 Greatest Support 40 | 40 40 40 Greatest Overweight (x) 6 | . . 6 Average Overweight (x) . | . . . Largest Inventory Capacity 15 | 5 15 15 Average Capacity 10 | 5 9 15 Most Carried 9 | 5 7 9 Average Carried 5 | 4 4 8 Final Capacity 15 | 5 15 15 Final Carried 9 | 5 7 9 Class Distribution -------------------- 100% | Mutant Dominant Class ---------------- Mutant | -10/Materials Mutant | -10/Mines Resources | -11 -10 -10 ----------- Run | Yrd Mat Min Matter Collected 330 | 229 61 40 Remotely . | . . . Salvage Created 506 | . 227 279 Parts 32 | . 10 22 Haulers Intercepted . | . . . Recyclers Shooed . | . . . Parts Field Recycled . | . . . Retrieved Matter . | . . . Parts Self-Destructed . | . . . Prevented . | . . . Parts Restored . | . . . Kills | -11 -10 -10 ------- Run | Yrd Mat Min Combat Hostiles Destroyed 13 | . 4 9 Guns 13 | . 4 9 Classes Destroyed 3 | . 2 1 Recycler 1 | . 1 . Swarmer 5 | . . 5 Grunt 8 | . 4 4 Best Kill Streak 7 | . 2 7 Combat Bots Only 7 | . 1 7 Max Kills in Single Turn 2 | . 1 2 Gunslinging 1 | . . 1 Exploded . | . . . Melee . | . . . Uniques/NPCs Destroyed . | . . . Combat | -11 -10 -10 -------- Run | Yrd Mat Min Hostile Shots Fired 83 | . 42 41 Missed 22 | . 14 8 Hits 61 | . 28 33 Projectile 61 | . 28 33 AOE 9 | . . 9 Part Disruptions 1 | . 1 . Damage Taken 926 | . 368 558 Core 268 | . 96 172 Absorbed by Shields . | . . . Core Remaining (%) 100 | 100 . . Volleys Fired 37 | . 22 15 Largest 2 | . 2 2 Hottest 90 | . 80 90 Shots Fired 66 | . 36 30 Gun 66 | . 36 30 Cannon . | . . . Launcher . | . . . Special . | . . . Kinetic . | . . . Thermal 28 | . 28 . Explosive . | . . . Electromagnetic 38 | . 8 30 Robot Hit Streak 8 | . 8 7 Robot Miss Streak 2 | . 1 2 Penetration Max . | . . . Secondary Targets 3 | . . 3 Max Gunslinging Chain 1 | . . 1 Shots Hit Robots 44 | . 26 18 Core Hits 24 | . 11 13 Critical Kills . | . . . Critical Parts Destroyed . | . . . Critical Strikes . | . . . Melee Attacks . | . . . Impact . | . . . Slashing . | . . . Piercing . | . . . Sneak Attacks . | . . . Combat Hostiles . | . . . Follow-up Attacks . | . . . Damage Inflicted 552 | . 297 255 Guns 552 | . 297 255 Cannons . | . . . Explosions . | . . . Melee . | . . . Ramming . | . . . Kinetic . | . . . Thermal 220 | . 220 . Explosive . | . . . Electromagnetic 332 | . 77 255 Impact . | . . . Slashing . | . . . Piercing . | . . . Highest Corruption . | . . . Average Corruption . | . . . Corruption Purged . | . . . Corruption Blocked . | . . . Overload Shots . | . . . Overflow Damage . | . . . Projectiles . | . . . Explosions . | . . . Melee . | . . . Knockbacks . | . . . Impact . | . . . Kinetic . | . . . Secondary . | . . . Self-Inflicted Damage . | . . . Shots . | . . . Rammed . | . . . Targets Rammed . | . . . Kicked . | . . . Crushed . | . . . Highest Temperature 253 | . 143 253 Average Temperature 80 | . 52 112 Received Heat Transfer 255 | . 204 51 Siege Activations . | . . . Martial Activations . | . . . Shielding Activations . | . . . Robots Disrupted . | . . . Combat Hostiles . | . . . Robots Corrupted . | . . . Combat Hostiles . | . . . Parts Fried . | . . . Impact Corruptions . | . . . Robots Melted . | . . . Combat Hostiles . | . . . Parts Melted 1 | . 1 . Heat Transferred 500 | . 500 . Parts Sabotaged . | . . . Parts Stolen . | . . . Parts Stripped . | . . . Power Chain Reactions . | . . . Alert | -11 -10 -10 ------- Run | Yrd Mat Min Maximum Alert Level . | . . . Low Security (%) 100 | 100 100 100 Level 1 . | . . . Level 2 . | . . . Level 3 . | . . . Level 4 . | . . . Level 5 . | . . . High Security . | . . . Max Security . | . . . Peak Influence 160 | . 51 160 Initial . | . . . Average 35 | . 9 120 Influence Increases 355 | . 105 250 Destroy 0b10 Robot/C 260 | . 80 180 Destroy 0b10 Robot/NC 5 | . 5 . Destroy Leader 60 | . 20 40 Lose Combat Pursuer 30 | . . 30 Influence Decreases 275 | . 105 170 Time Decay 205 | . 95 110 Lost Part 70 | . 10 60 Squads Dispatched . | . . . Investigation . | . . . Extermination . | . . . Reinforcement . | . . . Assault . | . . . Garrison . | . . . Intercept . | . . . Searches Triggered . | . . . Construction Impeded . | . . . Haulers Reinforced . | . . . Active Scanning Responses . | . . . Cargo Convoy Interrupts . | . . . Stealth | -11 -10 -10 --------- Run | Yrd Mat Min Distress Signals . | . . . Communications Jammed . | . . . Distress Signals . | . . . Times Spotted 22 | . 9 13 Peak Tracking Total 5 | . 3 5 Tactical Retreats 1 | . . 1 Traps | -11 -10 -10 ------- Run | Yrd Mat Min Traps Triggered 1 | . 1 . Indirectly . | . . . Trap Hack Attempts . | . . . Triggered . | . . . Disarmed . | . . . Reprogrammed . | . . . Reused . | . . . Traps Extracted . | . . . Installed . | . . . Triggered . | . . . Machines | -11 -10 -10 ---------- Run | Yrd Mat Min Machines Disabled . | . . . Max in Single Turn . | . . . Machines Repaired . | . . . Machines Dismantled . | . . . Machines Sabotaged . | . . . Overloaded Fab Kills . | . . . Hacking | -11 -10 -10 --------- Run | Yrd Mat Min Machines Accessed 1 | . 1 . Terminals . | . . . Fabricators . | . . . Repair Stations . | . . . Recycling Units 1 | . 1 . Scanalyzers . | . . . Garrison Access . | . . . Total Hacks 1 | . 1 . Successful 1 | . 1 . Failed . | . . . Catastrophic . | . . . Database Lockouts . | . . . Manual . | . . . Terminals . | . . . Fabricators . | . . . Repair Stations . | . . . Recycling Units 1 | . 1 . Scanalyzers . | . . . Garrison Access . | . . . Terminal Hacks . | . . . Fabricator Hacks . | . . . Repair Station Hacks . | . . . Recycling Unit Hacks 1 | . 1 . Retrieve Components 1 | . 1 . Scanalyzer . | . . . Garrison Access Hacks . | . . . Unauthorized Hacks . | . . . Terminals . | . . . Fabricators . | . . . Repair Stations . | . . . Recycling Units . | . . . Scanalyzers . | . . . Garrison Access . | . . . Data Cores Recovered . | . . . Used . | . . . Hacking Detections . | . . . Full Trace Events . | . . . Feedback Events . | . . . Feedback Blocked . | . . . Robot Schematics Acquired . | . . . Robots Built . | . . . Authchips . | . . . Time . | . . . Total Robot Build Rating . | . . . Part Schematics Acquired . | . . . Parts Built . | . . . Authchips . | . . . Time . | . . . Total Part Build Rating . | . . . Part Studies Acquired . | . . . Parts Repaired . | . . . Time . | . . . Parts Recycled . | . . . Recycled Matter . | . . . Retrieved Matter . | . . . Retrieved Components . | . . . Parts Scanalyzed . | . . . Part Schematics Acquired . | . . . Parts Damaged . | . . . Bothacking | -11 -10 -10 ------------ Run | Yrd Mat Min Used RIF Installer . | . . . Robots Hacked . | . . . Non-combat . | . . . Combat . | . . . Robot Hacks Applied . | . . . Relay Couplers Released . | . . . Fabnet Peak Effective % . | . . . Robots Rewired . | . . . Allies Hacked . | . . . Hacks Repelled . | . . . Allies | -11 -10 -10 -------- Run | Yrd Mat Min Total Allies . | . . . Largest Group . | . . . Highest-Rated Group . | . . . Highest-Rated Ally . | . . . Total Orders . | . . . Ally Attacks . | . . . Total Damage . | . . . Kills . | . . . Allies Corrupted . | . . . Allies Melted . | . . . Intel | -11 -10 -10 ------- Run | Yrd Mat Min Active Infowar (turns) . | . . . Robot Analysis Total . | . . . Derelict Logs Recovered 1 | . . 1 Drone Launches . | . . . Drone Recoveries . | . . . Exploration | -11 -10 -10 ------------- Run | Yrd Mat Min Turns Passed 920 | 77 623 220 Spaces Moved 496 | 50 342 104 Core 11 | 10 . 1 Treads 479 | 34 342 103 Legs . | . . . Wheels 6 | 6 . . Hover . | . . . Flight . | . . . Fastest Speed 50 | 50 160 160 Average Speed 157 | 128 160 162 Slowest Speed 350 | 160 160 350 Overloaded Moves . | . . . Propulsion Burnouts . | . . . Robots Hopped . | . . . Potential Cave-ins . | . . . Cave-ins Triggered . | . . . Exploration Rate (%) 22 | 3 43 20 Regions Visited 2 Branch Regions 1 Pre-discovered Areas . | . . . Known Exits Taken . | . . . Unknown Exits Taken 2 | 1 1 . Scrap Searched 1 | . . 1 Spaces Dug . | . . . Terrain Destroyed . | . . . Melee . | . . . Projectile . | . . . AOE . | . . . Terrain Rammed . | . . . Walls Destroyed . | . . . Machines Disabled . | . . . Actions | -11 -10 -10 --------- Run | Yrd Mat Min Total 567 | 60 382 125 Wait 6 | . 4 2 Move 494 | 49 341 104 Hop . | . . . Pick Up 15 | 5 7 3 Fast Attach 5 | 4 1 . Attach 6 | . 5 1 Detach . | . . . Swap 2 | 2 . . Drop 2 | . 2 . Fire 37 | . 22 15 Melee . | . . . Ram . | . . . Kick . | . . . Crush . | . . . Escape Stasis . | . . . Rewire . | . . . Trap . | . . . Miscellaneous . | . . . Route ------- -11/Scrapyard -10/Materials (discovered 4 exits: [*Mat x2] / [*Min x2]) -10/Mines (discovered 1 exit: [*Mat]) History --------- Turn | Location | Event 3 | -11/Scrapyard | Discovered new exit (range 15) 78 | -11/Scrapyard | Entered Materials 134 | -10/Materials | Discovered new exit (range 9) 278 | -10/Materials | Discovered new exit (range 4) 307 | -10/Materials | Build established: Mutant 457 | -10/Materials | Discovered new exit (range 13) 533 | -10/Materials | Discovered new exit (range 13) 701 | -10/Materials | Entered Mines 751 | -10/Mines | Destroyed 7 combat bots 796 | -10/Mines | Discovered new exit (range 6) 841 | -10/Mines | Learned location of 1 exit from Materials 851 | -10/Mines | Core integrity fell below 50% 885 | -10/Mines | Assembled infested the area 921 | -10/Mines | Core integrity fell below 20% 921 | -10/Mines | Destroyed by D-53 Grenadier with Mini Grenade Launcher Last Messages --------------- 00793_ Found 57 Matter. 00793_ R-06 Scavenger collects Flight Unit. 00796_ EXIT=FOUND 00796_ R-06 Scavenger collects Flight Unit. 00803_ R-06 Scavenger collects Lgt. Assault Rifle. 00841_ Acquired derelict log, extracted data. Data stored: Materials exits (x1). 00853_ S-10 Pest destroyed. 00885_ ALERT: Infestation in the mines, dispatching Demolisher response squad. 00914_ C-45 Heavy ARC bursts open, deploying its payload. 00914_ D-53 Grenadier unfolds itself. 00914_ Hvy. EM Pulse Gun destroyed. 00914_ Lgt. Treads destroyed. 00915_ Hvy. EM Pulse Gun destroyed. 00916_ R-06 Scavenger collects Flight Unit. 00917_ Lgt. Treads destroyed. 00917_ Ion Engine destroyed. Map ----- +----------------------------------------------------+ | | | | | | | | | | | | | | | | | | | ????????????????????????????????????????????????? | | ????????????????????????????????????????????????? | | ????????????????????????????????????????????????? | | ????????????????????????????????????????????????? | | ????????????????####????###?????????????????????? | | ???????????????## ##?# ##????????????????????? | | ???????????##### ## #????????????????????? | | ???????????# #????????????????????? | | ????????????# ##???????????????????? | | ???????????????# < ##??????????????????? | | ????????????????# #??????????????????? | | ????????????????## ## #??????????????????? | | ?????????????????###=# ## #???????????????????? | | ???????????????????#% ##??????????????????? | | ????################=%= ################???? | | ???## ![%! # #???? | | ???# =% = u [ @ # #???? | | ???# ###### r# #???? | | ???# #????# d #???? | | ???#### ##????# d # """ """ """ #???? | | ??????#####?????#### % # """ """ """ #???? | | ???????????????????# # """ """ """ ??? | | ???????????????????### ## # ## ? | | ?????????????????????# ## ################# ## ## | | ?????????????????????# ## #???????????????? #? #? | | ?????????????????????# ## #???????????????? ??#? | | ??????????????????#### ## #????????????????##???? | | ??????????????????# #?????????????????????? | | ??????????????????# #######?????????????????????? | | ??????????????????#?????????????????????????????? | | ????????????????????????????????????????????????? | | ????????????????????????????????????????????????? | | ????????????????????????????????????????????????? | | ????????????????????????????????????????????????? | | ????????????????????????????????????????????????? | | ????????????????????????????????????????????????? | | ????????????????????????????????????????????????? | | ????????????????????????????????????????????????? | | ????????????????????????????????????????????????? | | ????????????????????????????????????????????????? | | ????????????????????????????????????????????????? | +----------------------------------------------------+ Best States ------------- Heat Dissipation 25 Energy Generation 10 Energy Capacity 250 Matter Stores 300 Matter Capacity 300 Sight Range 16 Terrain Scan Density 10 Evasion (%) 44 Targeting Accuracy 6 Recoil Reduction 2 Item Schematics ----------------- None Robot Schematics ------------------ None Fabricated ------------ Nothing Repaired ---------- Nothing Studied --------- None Alien Tech Used ----------------- None Achievements -------------- None Challenges ------------ None Game ------ Seed CooledMasterMiniperforator Manual? 0 Play Time 00:09:06 Cumulative 14.0 hours Start 2026.01.26 @ 18:04:06 End 2026.01.26 @ 18:14:07 Sessions 1 Manual Loads 0 Difficulty Rogue Special Mode None Game No. 24 Rogue 24 Adventurer 0 Explorer 0 Win Type - Total 0 Types 0/0/0/0/0/0/0/0/0/0 Lore% 5 Gallery% 15 Achievement% 9 Wizard Run 0 Options --------- Layout 1 ASCII 0 Keyboard 0 Movement Mouse Keybinds 0 Fullscreen 1 Font 24/Smallcaps Map View 50x35 Zoom Use 0% Tactical HUD 1 Map Filters NONE Filters NONE Steam 1 RUN: b1f9f9e0-1a0e-41e2-b8d8-4324db27abd4